[Event "NED-chT Meesterklasse 2018-19"]
[Site "Netherlands"]
[Date "2018.09.15"]
[Round "1"]
[White "Van Delft, Merijn"]
[Black "Ootes, Lars"]
[Result "0-1"]
[ECO "B07"]
[WhiteElo "2386"]
[BlackElo "2374"]
[Annotator "NA"]
[PlyCount "62"]
[EventDate "2018.09.15"]
[EventType "team-tourn"]
[EventCountry "NED"]
[SourceTitle "playchess.com"]
[Source "ChessBase"]
[SourceQuality "1"]
[TimeControl "40/5400+30:1800+30"]

1. e4 {[%emt 0:00:00]} d6 {[%emt 0:00:00]} 2. d4 {[%emt 0:00:00]} Nf6 {[%emt 0:00:00]} 3. Nc3 {[%emt 0:00:00]} g6 {[%emt 0:00:00]} 4. Be3 {[%emt 0:00:20]} a6 {[%emt 0:00:16]} 5. Qd2 {[%emt 0:00:41]} b5 {[%emt 0:01:10]} 6. f3 {[%emt 0:00:42]} Nbd7 {[%emt 0:00:34]} 7. O-O-O {[%emt 0:01:05]} Bb7 {[%emt 0:03:03]} 8. Kb1 {[%emt 0:02:08]} c6 {[%emt 0:24:01]} 9. g4 {[%emt 0:04:07]} Nb6 {[%emt 0:03:10]} 10. Qf2 {[%emt 0:03:47]} b4 {[%emt 0:09:07]} 11. Nce2 {[%emt 0:00:25]} Bg7 {[%emt 0:05:45]} 12. h4 {[%emt 0:01:24]} h5 {[%emt 0:11:41]} 13. gxh5 {[%emt 0:02:30]} Nxh5 {[%emt 0:01:24]} 14. Nh3 {[%emt 0:17:21]} d5 {[%emt 0:06:40]} 15. Ng5 {[%emt 0:07:03]} Nc4 {[%emt 0:01:19]} 16. Bc1 {[%emt 0:02:45]} Qb6 {[%emt 0:00:38]} 17. Rh2 {[%emt 0:11:47]} a5 {[%emt 0:10:13]} 18. e5 {[%emt 0:10:05]} Bc8 {[%emt 0:08:22]} 19. f4 {[%emt 0:04:52]} Bf5 {[%emt 0:01:56]} 20. Bh3 {[%emt 0:04:31]} Na3+ {[%emt 0:06:39]} 21. bxa3 {[%emt 0:00:12]} Rb8 {[%emt 0:00:17]} 22. Ka1 {[%emt 0:04:45]} Bxc2 {[%emt 0:00:10]} 23. Nc3 {[%emt 0:00:55]} Bxd1 {[%emt 0:00:09]} 24. Nxd1 {[%emt 0:01:46]} bxa3 {[%emt 0:00:09]} 25. Nc3 {[%emt 0:02:34]} Qb4 {[%emt 0:00:19]} 26. Qc2 {[%emt 0:01:38]} O-O {[%emt 0:01:54]} 27. Bg4 {[%emt 0:02:44]} Rb7 {[%emt 0:01:59]} 28. Bxh5 {[%emt 0:05:50]} Rfb8 {[%emt 0:00:04]} 29. Bxg6 {[%emt 0:01:58]} fxg6 {[%emt 0:00:06]} 30. Ne6 {[%emt 0:04:17]} Qxc3+ {[%emt 0:00:16]} 31. Qxc3 {[%emt 0:00:17]} Rb1# {[%emt 0:00:05]} 0-1

[Event "NED-chT Meesterklasse 2018-19"]
[Site "Netherlands"]
[Date "2018.09.15"]
[Round "1"]
[White "Kabatianski, Alexander"]
[Black "Van der Heijden, Ton"]
[Result "1-0"]
[ECO "D77"]
[WhiteElo "2371"]
[BlackElo "2308"]
[Annotator "NA"]
[PlyCount "77"]
[EventDate "2018.09.15"]
[EventType "team-tourn"]
[EventCountry "NED"]
[SourceTitle "playchess.com"]
[Source "ChessBase"]
[SourceQuality "1"]
[TimeControl "40/5400+30:1800+30"]

1. d4 {[%emt 0:00:00]} Nf6 {[%emt 0:00:00]} 2. Nf3 {[%emt 0:00:00]} g6 {[%emt 0:00:05]} 3. g3 {[%emt 0:00:00]} Bg7 {[%emt 0:00:11]} 4. Bg2 {[%emt 0:00:00]} O-O {[%emt 0:00:15]} 5. O-O {[%emt 0:00:24]} d5 {[%emt 0:00:32]} 6. c4 {[%emt 0:00:23]} dxc4 {[%emt 0:00:53]} 7. Na3 {[%emt 0:00:21]} Nc6 {[%emt 0:01:20]} 8. Nxc4 {[%emt 0:00:07]} Be6 {[%emt 0:00:53]} 9. b3 {[%emt 0:00:10]} Bd5 {[%emt 0:00:15]} 10. Bb2 {[%emt 0:00:04]} a5 {[%emt 0:01:18]} 11. Ne3 {[%emt 0:09:28]} Be4 {[%emt 0:01:44]} 12. a3 {[%emt 0:00:34]} Qc8 {[%emt 0:20:45]} 13. Nc4 {[%emt 0:02:37]} Rd8 {[%emt 0:03:59]} 14. e3 {[%emt 0:15:55]} Qf5 {[%emt 0:44:08]} 15. Rc1 {[%emt 0:03:33]} g5 {[%emt 0:00:43]} 16. Ncd2 {[%emt 0:14:08]} Bd5 {[%emt 0:02:53]} 17. Re1 {[%emt 0:10:54]} Ne4 {[%emt 0:01:46]} 18. Qe2 {[%emt 0:06:15]} Nxd2 {[%emt 0:06:29]} 19. Nxd2 {[%emt 0:00:07]} Bxg2 {[%emt 0:00:07]} 20. Kxg2 {[%emt 0:00:03]} Qd5+ {[%emt 0:00:12]} 21. Kg1 {[%emt 0:02:13]} e5 {[%emt 0:00:21]} 22. e4 {[%emt 0:00:44]} Qd7 {[%emt 0:03:27]} 23. d5 {[%emt 0:00:05]} Nd4 {[%emt 0:00:05]} 24. Bxd4 {[%emt 0:08:47]} exd4 {[%emt 0:01:32]} 25. Qd3 {[%emt 0:02:40]} Ra6 {[%emt 0:04:13]} 26. Nf3 {[%emt 0:01:46]} h6 {[%emt 0:01:10]} 27. Nxd4 {[%emt 0:04:58]} Bxd4 {[%emt 0:00:27]} 28. Qxd4 {[%emt 0:00:01]} c6 {[%emt 0:00:11]} 29. Red1 {[%emt 0:03:35]} cxd5 {[%emt 0:00:19]} 30. Rc5 {[%emt 0:01:40]} Re8 {[%emt 0:02:29]} 31. exd5 {[%emt 0:02:01]} Rd6 {[%emt 0:00:31]} 32. a4 {[%emt 0:02:15]} b6 {[%emt 0:01:20]} 33. Rc3 {[%emt 0:02:23]} Rxd5 {[%emt 0:00:28]} 34. Qxd5 {[%emt 0:00:13]} Re1+ {[%emt 0:00:01]} 35. Kg2 {[%emt 0:02:30]} Rxd1 {[%emt 0:00:09]} 36. Qxd7 {[%emt 0:07:06]} Rxd7 37. Rc6 b5 38. axb5 Rd3 39. b4 {[%emt 0:00:00]} 1-0

[Event "NED-chT Meesterklasse 2018-19"]
[Site "Netherlands"]
[Date "2018.09.15"]
[Round "1"]
[White "De Groote, Ewoud"]
[Black "Van de Oudeweetering, Arthur"]
[Result "1-0"]
[ECO "C84"]
[WhiteElo "2282"]
[BlackElo "2297"]
[Annotator "NA"]
[PlyCount "123"]
[EventDate "2018.09.15"]
[EventType "team-tourn"]
[EventCountry "NED"]
[SourceTitle "playchess.com"]
[Source "ChessBase"]
[SourceQuality "1"]
[TimeControl "40/5400+30:1800+30"]

1. e4 {[%emt 0:00:00]} e5 {[%emt 0:00:00]} 2. Nf3 {[%emt 0:00:00]} Nc6 {[%emt 0:00:00]} 3. Bb5 {[%emt 0:00:00]} a6 {[%emt 0:00:00]} 4. Ba4 {[%emt 0:00:00]} Nf6 {[%emt 0:00:00]} 5. d3 {[%emt 0:00:00]} b5 {[%emt 0:00:36]} 6. Bb3 {[%emt 0:00:00]} Be7 {[%emt 0:00:07]} 7. O-O {[%emt 0:00:13]} Bb7 {[%emt 0:00:34]} 8. Nc3 {[%emt 0:01:05]} O-O {[%emt 0:00:40]} 9. a3 {[%emt 0:00:40]} Nd4 {[%emt 0:06:23]} 10. Ba2 {[%emt 0:04:20]} Nxf3+ {[%emt 0:10:23]} 11. Qxf3 {[%emt 0:00:04]} d6 {[%emt 0:01:15]} 12. h3 {[%emt 0:05:59]} Qd7 {[%emt 0:13:19]} 13. Bd2 {[%emt 0:35:55]} Rad8 {[%emt 0:10:21]} 14. Qg3 {[%emt 0:08:36]} Nh5 {[%emt 0:18:17]} 15. Qg4 {[%emt 0:05:43]} Qxg4 {[%emt 0:03:13]} 16. hxg4 {[%emt 0:00:01]} Nf4 {[%emt 0:00:51]} 17. g3 {[%emt 0:02:26]} Ne6 {[%emt 0:00:55]} 18. Be3 {[%emt 0:01:12]} c6 {[%emt 0:11:32]} 19. f4 {[%emt 0:06:42]} Rd7 {[%emt 0:02:01]} 20. Rae1 {[%emt 0:06:07]} h6 {[%emt 0:07:09]} 21. Ne2 {[%emt 0:06:27]} Kh7 {[%emt 0:03:30]} 22. Kh2 {[%emt 0:04:48]} Bf6 {[%emt 0:02:40]} 23. c3 {[%emt 0:01:46]} c5 {[%emt 0:03:45]} 24. Bb1 {[%emt 0:02:42]} Kg8 {[%emt 0:00:28]} 25. Ng1 {[%emt 0:01:04]} Bd8 {[%emt 0:03:19]} 26. Nf3 {[%emt 0:01:19]} Bf6 {[%emt 0:00:22]} 27. Bc1 {[%emt 0:03:22]} Rc8 {[%emt 0:00:11]} 28. Bd2 {[%emt 0:01:38]} c4 {[%emt 0:00:49]} 29. g5 {[%emt 0:01:31]} hxg5 {[%emt 0:00:09]} 30. fxg5 {[%emt 0:00:13]} Be7 {[%emt 0:00:34]} 31. d4 {[%emt 0:00:15]} g6 {[%emt 0:00:50]} 32. Re2 {[%emt 0:00:40]} Rdc7 {[%emt 0:00:58]} 33. Ref2 {[%emt 0:01:07]} Rf8 {[%emt 0:00:36]} 34. Kg2 {[%emt 0:00:23]} Kg7 {[%emt 0:00:04]} 35. d5 {[%emt 0:00:14]} Nc5 {[%emt 0:00:09]} 36. Be3 {[%emt 0:00:34]} Bd8 {[%emt 0:00:41]} 37. Nd4 {[%emt 0:00:47]} Rh8 {[%emt 0:01:03]} 38. g4 {[%emt 0:00:34]} exd4 {[%emt 0:00:45]} 39. Bxd4+ {[%emt 0:00:15]} f6 {[%emt 0:00:22]} 40. gxf6+ {[%emt 0:00:46]} Kf7 {[%emt 0:00:25]} 41. g5 {[%emt 0:03:53]} Rh5 {[%emt 0:03:04]} 42. Be3 {[%emt 0:01:41]} Kf8 {[%emt 0:19:39]} 43. Bf4 {[%emt 0:07:58]} Rd7 {[%emt 0:03:37]} 44. Rh1 {[%emt 0:02:19]} Kf7 {[%emt 0:00:13]} 45. Rxh5 {[%emt 0:02:32]} gxh5 {[%emt 0:00:02]} 46. Rf3 {[%emt 0:02:42]} Nd3 {[%emt 0:02:40]} 47. Rxd3 {[%emt 0:02:13]} cxd3 {[%emt 0:00:06]} 48. Bxd3 {[%emt 0:00:00]} Bxf6 {[%emt 0:02:33]} 49. gxf6 {[%emt 0:00:06]} Kxf6 {[%emt 0:00:07]} 50. Kf3 {[%emt 0:01:32]} Rd8 {[%emt 0:02:49]} 51. Ke3 {[%emt 0:01:15]} h4 {[%emt 0:00:11]} 52. Kd4 {[%emt 0:00:49]} h3 {[%emt 0:00:32]} 53. Bxd6 {[%emt 0:00:20]} Rh8 {[%emt 0:00:10]} 54. Bh2 {[%emt 0:01:59]} Rh4 {[%emt 0:01:15]} 55. b3 {[%emt 0:02:09]} Rg4 {[%emt 0:00:08]} 56. Bf1 {[%emt 0:00:16]} a5 {[%emt 0:01:05]} 57. Bxh3 {[%emt 0:00:25]} Rh4 {[%emt 0:00:23]} 58. Be5+ {[%emt 0:00:06]} Ke7 {[%emt 0:00:09]} 59. Bf5 {[%emt 0:00:12]} Rh6 {[%emt 0:00:48]} 60. Kc5 {[%emt 0:00:37]} b4 {[%emt 0:00:27]} 61. cxb4 {[%emt 0:00:57]} axb4 {[%emt 0:00:03]} 62. a4 {[%emt 0:00:18]} 1-0

[Event "NED-chT Meesterklasse 2018-19"]
[Site "Netherlands"]
[Date "2018.09.15"]
[Round "1"]
[White "Lammens, Tim"]
[Black "Grafl, Florian"]
[Result "1/2-1/2"]
[ECO "B06"]
[WhiteElo "2279"]
[BlackElo "2347"]
[Annotator "NA"]
[PlyCount "83"]
[EventDate "2018.09.15"]
[EventType "team-tourn"]
[EventCountry "NED"]
[SourceTitle "playchess.com"]
[Source "ChessBase"]
[SourceQuality "1"]
[TimeControl "40/5400+30:1800+30"]

1. Nf3 {[%emt 0:00:00]} g6 {[%emt 0:00:00]} 2. e4 {[%emt 0:00:00]} Bg7 {[%emt 0:00:00]} 3. d4 {[%emt 0:00:03]} d6 {[%emt 0:00:00]} 4. Bc4 {[%emt 0:01:02]} e6 {[%emt 0:00:53]} 5. Bb3 {[%emt 0:00:36]} Ne7 {[%emt 0:00:05]} 6. O-O {[%emt 0:00:28]} O-O {[%emt 0:00:18]} 7. Re1 {[%emt 0:00:36]} h6 {[%emt 0:01:43]} 8. Nbd2 {[%emt 0:05:32]} b6 {[%emt 0:01:59]} 9. Nf1 {[%emt 0:01:38]} Bb7 {[%emt 0:02:50]} 10. Ng3 {[%emt 0:00:48]} c5 {[%emt 0:00:52]} 11. c3 {[%emt 0:04:41]} Nbc6 {[%emt 0:02:26]} 12. h4 {[%emt 0:22:00]} cxd4 {[%emt 0:12:43]} 13. cxd4 {[%emt 0:00:10]} e5 {[%emt 0:00:17]} 14. h5 {[%emt 0:11:28]} Kh7 {[%emt 0:02:11]} 15. dxe5 {[%emt 0:22:30]} dxe5 {[%emt 0:03:16]} 16. Qe2 {[%emt 0:01:32]} Qc8 {[%emt 0:23:32]} 17. Bc4 {[%emt 0:05:26]} a6 {[%emt 0:16:03]} 18. Be3 {[%emt 0:02:24]} Nd4 {[%emt 0:02:08]} 19. Nxd4 {[%emt 0:00:50]} exd4 {[%emt 0:00:04]} 20. Bf4 {[%emt 0:00:09]} b5 {[%emt 0:02:40]} 21. Bb3 {[%emt 0:01:52]} Qd7 {[%emt 0:03:34]} 22. Rac1 {[%emt 0:01:17]} Bc6 {[%emt 0:01:20]} 23. e5 {[%emt 0:04:15]} Bd5 {[%emt 0:21:01]} 24. Rcd1 {[%emt 0:08:15]} Bxb3 {[%emt 0:00:53]} 25. axb3 {[%emt 0:00:01]} Rad8 {[%emt 0:00:49]} 26. Qd3 {[%emt 0:00:41]} Qg4 {[%emt 0:00:32]} 27. Re4 {[%emt 0:01:32]} Qe6 {[%emt 0:00:02]} 28. Ne2 {[%emt 0:01:24]} Nc6 {[%emt 0:00:42]} 29. Nxd4 {[%emt 0:00:55]} Nxd4 {[%emt 0:00:53]} 30. Rxd4 {[%emt 0:00:01]} Rxd4 {[%emt 0:00:04]} 31. Qxd4 {[%emt 0:00:02]} Qxb3 {[%emt 0:00:05]} 32. Rd3 {[%emt 0:02:02]} Qe6 {[%emt 0:01:03]} 33. Qe3 {[%emt 0:01:14]} g5 {[%emt 0:00:49]} 34. Bg3 {[%emt 0:00:03]} Re8 {[%emt 0:00:31]} 35. Rd6 {[%emt 0:01:05]} Qf5 {[%emt 0:00:36]} 36. Rxa6 {[%emt 0:00:41]} Bxe5 {[%emt 0:00:03]} 37. Qb6 {[%emt 0:00:41]} Re6 {[%emt 0:00:39]} 38. Qxb5 {[%emt 0:00:14]} Qb1+ {[%emt 0:00:43]} 39. Kh2 {[%emt 0:00:06]} Bxg3+ {[%emt 0:00:21]} 40. Kxg3 {[%emt 0:01:46]} Rxa6 41. Qxa6 Qxb2 42. Qd3+ {[%emt 0:29:53]} 1/2-1/2

[Event "NED-chT Meesterklasse 2018-19"]
[Site "Netherlands"]
[Date "2018.09.15"]
[Round "1"]
[White "Van der Poel, Henk"]
[Black "Zwirs, Nico"]
[Result "0-1"]
[ECO "B51"]
[WhiteElo "2230"]
[BlackElo "2407"]
[Annotator "ChessBase"]
[PlyCount "92"]
[EventDate "2018.09.15"]
[EventType "team-tourn"]
[EventCountry "NED"]
[SourceTitle "playchess.com"]
[Source "ChessBase"]
[SourceQuality "1"]
[TimeControl "40/5400+30:1800+30"]

1. e4 {[%emt 0:00:00]} c5 {[%emt 0:00:00]} 2. Nf3 {[%emt 0:00:00]} Nc6 {[%emt 0:00:00]} 3. Bb5 {[%emt 0:02:00]} d6 {[%emt 0:00:00]} 4. O-O {[%emt 0:00:26]} Bd7 {[%emt 0:00:00]} 5. Re1 {[%emt 0:00:59]} Nf6 {[%emt 0:00:00]} 6. c3 {[%emt 0:00:43]} a6 {[%emt 0:00:19]} 7. Bf1 {[%emt 0:00:16]} Bg4 {[%emt 0:00:19]} 8. h3 {[%emt 0:00:17]} Bxf3 {[%emt 0:00:04]} 9. Qxf3 {[%emt 0:00:09]} g6 {[%emt 0:02:12]} 10. d3 {[%emt 0:02:08]} Bg7 {[%emt 0:00:10]} 11. Nd2 {[%emt 0:01:02]} O-O {[%emt 0:00:06]} 12. Qe2 {[%emt 0:02:37]} b5 {[%emt 0:01:08]} 13. Nf3 {[%emt 0:02:25]} Nd7 {[%emt 0:00:49]} 14. g3 {[%emt 0:12:40]} Nb6 {[%emt 0:07:37]} 15. Bg2 {[%emt 0:04:19]} Rb8 {[%emt 0:01:15]} 16. Be3 {[%emt 0:05:29]} Na4 {[%emt 0:15:51]} 17. d4 {[%emt 0:03:26]} Qb6 {[%emt 0:07:48]} 18. dxc5 {[%emt 0:11:51]} dxc5 {[%emt 0:01:45]} 19. Qc2 {[%emt 0:00:14]} Qa5 {[%emt 0:10:15]} 20. a3 {[%emt 0:16:43]} Rfc8 {[%emt 0:03:18]} 21. h4 {[%emt 0:04:48]} Qc7 {[%emt 0:13:52]} 22. Rad1 {[%emt 0:05:37]} c4 {[%emt 0:06:57]} 23. Rd2 {[%emt 0:02:10]} Ne5 {[%emt 0:03:55]} 24. Nxe5 {[%emt 0:00:24]} Bxe5 {[%emt 0:00:05]} 25. h5 {[%emt 0:06:41]} Rd8 {[%emt 0:06:54]} 26. hxg6 {[%emt 0:01:57]} hxg6 {[%emt 0:00:01]} 27. Red1 {[%emt 0:00:14]} Rxd2 {[%emt 0:03:15]} 28. Rxd2 {[%emt 0:00:20]} Rd8 {[%emt 0:05:37]} 29. Rxd8+ {[%emt 0:04:56]} Qxd8 {[%emt 0:00:01]} 30. Bf1 {[%emt 0:00:08]} Qc7 {[%emt 0:00:26]} 31. Qd2 {[%emt 0:03:14]} a5 {[%emt 0:05:29]} 32. Be2 {[%emt 0:04:23]} b4 {[%emt 0:03:00]} 33. axb4 {[%emt 0:00:10]} axb4 {[%emt 0:00:02]} 34. cxb4 {[%emt 0:02:07]} Nxb2 {[%emt 0:00:25]} 35. Bc5 {[%emt 0:00:54]} Nd3 {[%emt 0:02:26]} 36. Bxd3 {[%emt 0:00:24]} Qd7 {[%emt 0:00:18]} 37. Be3 {[%emt 0:01:11]} cxd3 {[%emt 0:00:03]} 38. f4 {[%emt 0:00:33]} Ba1 {[%emt 0:00:29]} 39. Kf2 {[%emt 0:00:28]} e5 {[%emt 0:01:59]} 40. Ke1 {[%emt 0:01:00]} Qb5 {[%emt 0:00:48]} 41. Kf2 {[%emt 0:09:19]} Qc4 {[%emt 0:01:54]} 42. Qc1 {[%emt 0:00:36]} Qa2+ {[%emt 0:05:02]} 43. Bd2 {[%emt 0:02:26]} Bb2 {[%emt 0:05:39]} 44. Qc8+ {[%emt 0:02:09]} Kg7 {[%emt 0:00:10]} 45. Ke3 {[%emt 0:01:58]} Qb1 {[%emt 0:04:55]} 46. Qd7 {[%emt 0:00:26]} Bd4+ {[%emt 0:00:11]} 0-1